fUST/lending_fUST_20241119
["ID","MTS","AMOUNT","RATE_DAILY","PERIOD"]
[342658267,1732027858870,-500.0,0.00024657,7]
[342658270,1732027858883,-500.0,0.00024657,7]
[342658272,1732027858894,-549.99,0.00024657,7]
[342658274,1732027858904,-500.0,0.00024657,7]
[342658276,1732027858913,-500.0,0.00024657,7]
[342658278,1732027858926,-500.0,0.00024657,7]
[342658280,1732027858935,-500.0,0.00024657,7]
[342658282,1732027858946,-500.0,0.00024657,7]
[342658284,1732027858955,-500.0,0.00024657,7]
[342658286,1732027858964,-500.0,0.00024657,7]
[342658288,1732027858975,-500.0,0.00024657,7]
[342658290,1732027858984,-276.81,0.00024657,7]
[342658292,1732027858993,-217.39,0.00024657,7]
[342658293,1732027859003,-500.0,0.00024657,7]
[342658295,1732027859015,-500.0,0.00024657,7]
[342658297,1732027859024,-500.0,0.00024657,7]
[342658299,1732027859033,-500.0,0.00024657,7]
[342658301,1732027859043,-2932.99,0.00024657,7]
[342658303,1732027859052,-2932.99,0.00024657,7]
[342658305,1732027859061,-2932.99,0.00024657,7]
[342658307,1732027859070,-500.0,0.00024657,7]
[342658309,1732027859080,-500.0,0.00024657,7]
[342658311,1732027859089,-500.0,0.00024657,7]
[342658313,1732027859099,-565.53988314,0.00024657,7]
[342658315,1732027859108,-500.0,0.00024657,7]
[342658317,1732027859118,-500.0,0.00024657,7]
[342658319,1732027859127,-501.09374086,0.00024657,7]
[342658321,1732027859136,-500.0,0.00024657,7]
[342658323,1732027859146,-3039.61,0.00024657,7]
[342658332,1732027859155,-500.0,0.00024657,7]
[342658334,1732027859236,-549.15,0.00024657,7]
[342658336,1732027859246,-500.0,0.00024657,7]
[342658338,1732027859256,-3039.61,0.00024657,7]
[342658341,1732027859269,-500.0,0.00024657,7]
[342658343,1732027859278,-500.0,0.00024657,7]
[342658345,1732027859288,-3039.61,0.00024657,7]
[342658347,1732027859297,-500.0,0.00024657,7]
[342658349,1732027859307,-500.0,0.00024657,7]
[342658351,1732027859316,-3039.61,0.00024657,7]
[342658353,1732027859327,-500.0,0.00024657,7]
[342658354,1732027859340,-500.0,0.00024657,7]
[342658357,1732027859350,-3039.61,0.00024657,7]
[342658359,1732027859360,-500.0,0.00024657,7]
[342658361,1732027859370,-500.0,0.00024657,7]
[342658363,1732027859380,-3039.61,0.00024657,7]
[342658365,1732027859389,-500.0,0.00024657,7]
[342658367,1732027859398,-3039.61,0.00024657,7]
[342658368,1732027859407,-500.0,0.00024657,7]
[342658370,1732027859418,-3039.61,0.00024657,7]
[342658373,1732027859428,-500.0,0.00024657,7]
[342658374,1732027859437,-3039.61,0.00024657,7]
[342658376,1732027859446,-500.0,0.00024657,7]
[342658378,1732027859456,-3039.61,0.00024657,7]
[342658380,1732027859466,-500.0,0.00024657,7]
[342658382,1732027859475,-3039.61,0.00024657,7]
[342658384,1732027859485,-500.0,0.00024657,7]
[342658386,1732027859494,-2932.99,0.00024657,7]
[342658388,1732027859503,-3039.61,0.00024657,7]
[342658390,1732027859514,-500.0,0.00024657,7]
[342658392,1732027859526,-2932.99,0.00024657,7]
[342658394,1732027859539,-3039.61,0.00024657,7]
[342658396,1732027859550,-500.0,0.00024657,7]
[342658398,1732027859560,-2932.99,0.00024657,7]
[342658400,1732027859569,-3039.61,0.00024657,7]
[342658402,1732027859579,-500.0,0.00024657,7]
[342658404,1732027859588,-2932.99,0.00024657,7]
[342658406,1732027859599,-3039.61,0.00024657,7]
[342658408,1732027859608,-556.97,0.00024657,7]
[342658410,1732027859618,-2932.99,0.00024657,7]
[342658412,1732027859628,-3039.61,0.00024657,7]
[342658414,1732027859637,-2932.99,0.00024657,7]
[342658416,1732027859647,-2932.99,0.00024657,7]
[342658418,1732027859656,-3039.61,0.00024657,7]
[342658420,1732027859666,-500.0,0.00024657,7]
[342658422,1732027859675,-2932.99,0.00024657,7]
[342658424,1732027859685,-3039.61,0.00024657,7]
[342658426,1732027859694,-500.0,0.00024657,7]
[342658428,1732027859704,-2932.99,0.00024657,7]
[342658430,1732027859715,-3039.61,0.00024657,7]
[342658432,1732027859725,-500.0,0.00024657,7]
[342658434,1732027859735,-3039.61,0.00024657,7]
[342658436,1732027859744,-2932.99,0.00024657,7]
[342658438,1732027859754,-500.0,0.00024657,7]
[342658440,1732027859766,-3039.61,0.00024657,7]
[342658442,1732027859775,-2932.99,0.00024657,7]
[342658444,1732027859784,-500.0,0.00024657,7]
[342658446,1732027859794,-150.09,0.00024657,7]
[342658448,1732027859804,-3039.61,0.00024657,7]
[342658450,1732027859813,-2932.99,0.00024657,7]
[342658452,1732027859823,-500.0,0.00024657,7]
[342658454,1732027859832,-3039.61,0.00024657,7]
[342658456,1732027859842,-500.0,0.00024657,7]
[342658458,1732027859851,-2932.99,0.00024657,7]
[342658460,1732027859861,-3039.71232272,0.00024657,7]
[342658462,1732027859871,-500.0,0.00024657,7]
[342658464,1732027859880,-2932.99,0.00024657,7]
[342658466,1732027859890,-500.0,0.00024657,7]
[342658468,1732027859899,-500.0,0.00024657,7]
[342658470,1732027859909,-2932.99,0.00024657,7]
[342658472,1732027859918,-500.0,0.00024657,7]
[342658474,1732027859928,-500.0,0.00024657,7]
[342658476,1732027859937,-2932.99,0.00024657,7]
[342658478,1732027859946,-500.0,0.00024657,7]
[342658480,1732027859956,-2932.99,0.00024657,7]
[342658482,1732027859966,-500.0,0.00024657,7]
[342658484,1732027859975,-500.0,0.00024657,7]
[342658486,1732027859984,-500.0,0.00024657,7]
[342658488,1732027859998,-2932.99,0.00024657,7]
[342658490,1732027860008,-500.0,0.00024657,7]
[342658492,1732027860019,-500.0,0.00024657,7]
[342658494,1732027860028,-500.0,0.00024657,7]
[342658496,1732027860037,-500.0,0.00024657,7]
[342658498,1732027860047,-2932.99,0.00024657,7]
[342658500,1732027860057,-500.0,0.00024657,7]
[342658502,1732027860067,-500.0,0.00024657,7]
[342658504,1732027860077,-500.0,0.00024657,7]
[342658506,1732027860086,-500.0,0.00024657,7]
[342658508,1732027860096,-2932.99,0.00024657,7]
[342658510,1732027860105,-500.0,0.00024657,7]
[342658512,1732027860115,-500.0,0.00024657,7]
[342658514,1732027860124,-2933.08365123,0.00024657,7]
[342658516,1732027860134,-500.0,0.00024657,7]
[342658518,1732027860143,-500.0,0.00024657,7]
[342658520,1732027860154,-500.0,0.00024657,7]
[342658522,1732027860163,-500.0,0.00024657,7]
[342658524,1732027860173,-500.0,0.00024657,7]
[342658526,1732027860183,-500.0,0.00024657,7]
[342658528,1732027860193,-500.0,0.00024657,7]
[342658530,1732027860203,-500.0,0.00024657,7]
[342658532,1732027860212,-500.0,0.00024657,7]
[342658534,1732027860222,-500.0,0.00024657,7]
[342658536,1732027860232,-168.15,0.00024657,7]
[342658538,1732027860242,-500.0,0.00024657,7]
[342658540,1732027860251,-500.0,0.00024657,7]
[342658542,1732027860262,-522.41,0.00024657,7]
[342658544,1732027860271,-500.0,0.00024657,7]
[342658546,1732027860281,-500.0,0.00024657,7]
[342658548,1732027860290,-500.0,0.00024657,7]
[342658551,1732027860300,-500.0,0.00024657,7]
[342658552,1732027860309,-500.0,0.00024657,7]
[342658555,1732027860319,-500.0,0.00024657,7]
[342658556,1732027860328,-150.09,0.00024657,7]
[342658558,1732027860341,-500.0,0.00024657,7]
[342658560,1732027860350,-500.0,0.00024657,7]
[342658562,1732027860359,-394.65,0.00024657,7]
[342658564,1732027860369,-150.06,0.00024657,7]
[342658566,1732027860378,-150.06,0.00024657,2]
[342658568,1732027860388,-500.0,0.00024657,7]
[342658570,1732027860397,-500.0,0.00024657,7]
[342658572,1732027860408,-500.0,0.00024657,7]
[342658574,1732027860417,-984.19,0.00024657,7]
[342658576,1732027860426,-500.0,0.00024657,7]
[342658578,1732027860436,-500.0,0.00024657,7]
[342658580,1732027860446,-500.0,0.00024657,7]
[342658582,1732027860456,-500.0,0.00024657,7]
[342658584,1732027860469,-543.43507225,0.00024657,7]
[342658586,1732027860479,-984.19,0.00024657,7]
[342658588,1732027860489,-357.63,0.00024657,7]
[342658590,1732027860499,-984.19,0.00024657,7]
[342658592,1732027860519,-984.19,0.00024657,7]
[342658594,1732027860529,-96.88154709,0.00024657,7]
[342658636,1732027860910,-887.30845291,0.00024657,7]
[342658638,1732027860921,-984.19,0.00024657,7]
[342658640,1732027860932,-500.0,0.00024657,7]
[342658642,1732027860941,-984.19,0.00024657,7]
[342658644,1732027860951,-984.19,0.00024657,7]
[342658646,1732027860960,-500.0,0.00024657,7]
[342658648,1732027860969,-522.29852105,0.00024657,7]
[342658650,1732027860978,-500.0,0.00024657,7]
[342658652,1732027860988,-984.19,0.00024657,7]
[342658654,1732027860997,-984.19,0.00024657,7]
[342658656,1732027861007,-984.19,0.00024657,7]
[342658658,1732027861019,-500.0,0.00024657,7]
[342658660,1732027861028,-984.19,0.00024657,7]
[342658661,1732027861037,-500.0,0.00024657,7]
[342658663,1732027861047,-984.19,0.00024657,7]
[342658665,1732027861056,-500.0,0.00024657,7]
[342658667,1732027861065,-984.19,0.00024657,7]
[342658669,1732027861075,-500.0,0.00024657,7]
[342658671,1732027861085,-984.19,0.00024657,7]
[342658673,1732027861094,-500.0,0.00024657,7]
[342658674,1732027861103,-984.19,0.00024657,7]
[342658676,1732027861113,-500.0,0.00024657,7]
[342658678,1732027861122,-500.0,0.00024657,7]
[342658680,1732027861132,-500.0,0.00024657,7]
[342658682,1732027861141,-984.19,0.00024657,7]
[342658684,1732027861151,-500.0,0.00024657,7]
[342658685,1732027861160,-984.19,0.00024657,7]
[342658687,1732027861170,-500.0,0.00024657,7]
[342658689,1732027861179,-984.19,0.00024657,7]
[342658691,1732027861189,-500.0,0.00024657,7]
[342658693,1732027861198,-984.19,0.00024657,7]
[342658695,1732027861208,-500.0,0.00024657,7]
[342658697,1732027861217,-500.0,0.00024657,7]
[342658698,1732027861227,-984.19,0.00024657,7]
[342658700,1732027861237,-433.51172679,0.00024657,7]
[342658702,1732027861246,-449.76,0.00024657,7]
[342658704,1732027861255,-500.0,0.00024657,7]
[342658706,1732027861268,-984.19,0.00024657,7]
[342658708,1732027861277,-500.0,0.00024657,7]
[342658709,1732027861286,-984.19,0.00024657,7]
[342658711,1732027861295,-984.29581463,0.00024657,7]
[342658713,1732027861305,-150.14,0.00024657,7]
[342658715,1732027861314,-500.0,0.00024657,7]
[342658717,1732027861325,-154.27647402,0.00024657,7]
[342658718,1732027861336,-500.0,0.00024657,7]
[342658720,1732027861346,-500.0,0.00024657,7]
[342658722,1732027861355,-500.0,0.00024657,7]
[342658724,1732027861364,-500.0,0.00024657,7]
[342658726,1732027861374,-500.0,0.00024657,7]
[342658727,1732027861383,-500.0,0.00024657,7]
[342658729,1732027861393,-495.51,0.00024657,7]
[342658731,1732027861403,-500.0,0.00024657,7]
[342658733,1732027861412,-500.0,0.00024657,7]
[342658735,1732027861422,-500.0,0.00024657,7]
[342658737,1732027861431,-500.0,0.00024657,7]
[342658738,1732027861441,-508.98657609,0.00024657,7]
[342658740,1732027861451,-500.0,0.00024657,7]
[342658742,1732027861461,-165.64628894,0.00024658,2]
[342658744,1732027861470,-380.0,0.00024658,2]
[342658746,1732027861480,-500.0,0.00024673,2]
[342658748,1732027861491,-500.0,0.00024673,2]
[342658750,1732027861500,-512.42956723,0.00024673,2]
[342658752,1732027861514,-500.0,0.00024673,2]
[342658753,1732027861527,-450.54834158,0.00024673,2]
[342658755,1732027861536,-1886.80857099,0.0002477,2]
[342658757,1732027861545,-150.06,0.00024931,7]
[342658759,1732027861555,-150.12,0.00024931,7]
[342658760,1732027861564,-500.0,0.00024931,7]
[342658762,1732027861574,-262.0,0.00024932,2]
[342658764,1732027861583,-374.0310403,0.00024988,2]
[342658766,1732027861593,-300.0,0.00025,2]
[342658768,1732027861603,-300.0,0.00025,2]
[342658770,1732027861611,-272.2,0.00025,2]
[342658772,1732027861620,-503.570534,0.00025,17]
[342658774,1732027861630,-262.0,0.00025,2]
[342658776,1732027861639,-454.31829542,0.00025,2]
[342658777,1732027861648,-300.0,0.000251,2]
[342658779,1732027861658,-433.06273149,0.00025123,2]
[342658781,1732027861668,-4566.08139332,0.000252,2]
[342658783,1732027861677,-4566.08139332,0.000252,2]
[342658784,1732027861687,-4566.08139332,0.000252,2]
[342658786,1732027861698,-4566.08139332,0.000252,2]
[342658788,1732027861711,-151.0,0.000252,7]
[342658790,1732027861721,-150.06,0.00025205,7]
[342658792,1732027861731,-500.0,0.00025205,7]
[342658794,1732027861742,-433.06273149,0.00025233,2]
[342658796,1732027861751,-500.0,0.00025312,7]
[342658798,1732027861767,-433.06273149,0.00025342,2]
[342658800,1732027861776,-374.0310403,0.0002542,2]
[342658802,1732027861786,-150.06,0.00025479,7]
[342658803,1732027861796,-500.0,0.00025479,7]
[342658805,1732027861805,-433.06273149,0.00025479,2]
[342658807,1732027861814,-2700.54,0.000255,14]
[342658809,1732027861824,-5186.16,0.000255,14]
[342658811,1732027861833,-1886.80857099,0.00025504,2]
[342658813,1732027861843,-433.06273149,0.00025589,2]
[342658815,1732027861852,-433.06273149,0.00025726,2]
[342658816,1732027861861,-150.06,0.00025753,7]
[342658818,1732027861871,-500.0,0.00025753,7]
[342658820,1732027861881,-433.06273149,0.00025836,2]
[342658822,1732027861892,-374.0310403,0.00025851,2]
[342658824,1732027861901,-1000.0,0.00025867,2]
[342658826,1732027861911,-262.0,0.0002589,2]
[342658834,1732027861920,-778.233,0.00025941,15]
[342658836,1732027861998,-433.06273149,0.00025973,2]
[342658838,1732027862008,-1255.68579179,0.00026,5]
[342658840,1732027862022,-310.4819881,0.00026019,2]
[342658841,1732027862031,-249.7,0.00026027,7]
[342658843,1732027862040,-199.88,0.00026027,7]
[342658845,1732027862050,-500.0,0.00026027,7]
[342658847,1732027862059,-433.06273149,0.00026082,2]
[342658849,1732027862068,-300.0,0.000261,2]
[342658851,1732027862078,-271.14379065,0.00026137,120]
[342658853,1732027862088,-433.06273149,0.00026192,2]
[342658855,1732027862097,-1886.80857099,0.00026237,2]
[342658856,1732027862107,-374.0310403,0.00026282,2]
[342658858,1732027862116,-500.0,0.00026301,7]
[342658860,1732027862126,-433.06273149,0.00026329,2]
[342658862,1732027862135,-433.06273149,0.00026438,2]
[342658864,1732027862144,-182.353,0.0002652,60]
[342658866,1732027862153,-500.0,0.00026575,7]
[342658868,1732027862163,-160.0,0.0002666,3]
[342658870,1732027862173,-374.0310403,0.00026714,2]
[342658872,1732027862182,-500.0,0.00026849,7]
[342658873,1732027862192,-400.0,0.00026921,2]
[342658875,1732027862201,-500.0,0.00026956,7]
[342658877,1732027862210,-1886.80857099,0.00026971,2]
[342658879,1732027862219,-182.351,0.0002698,60]
[342658881,1732027862229,-4000.0,0.00027,2]
[342658883,1732027862238,-6066.00943748,0.00027,7]
[342658885,1732027862247,-300.0,0.000271,2]
[342658887,1732027862256,-500.0,0.00027123,7]
[342658889,1732027862271,-374.0310403,0.00027145,2]
[342658890,1732027862280,-266.0,0.00027185,2]
[342658892,1732027862290,-500.0,0.00027342,7]
[342658894,1732027862300,-500.0,0.00027342,7]
[342658896,1732027862310,-330.0,0.00027342,7]
[342658898,1732027862320,-500.0,0.00027397,7]
[342658900,1732027862329,-500.0,0.00027397,7]
[342658902,1732027862342,-150.06,0.00027397,2]
[342658904,1732027862352,-182.301,0.0002744,30]
[342658906,1732027862361,-374.0310403,0.00027576,2]
[342658908,1732027862375,-500.0,0.00027671,7]
[342658910,1732027862384,-500.0,0.00027671,7]
[342658912,1732027862393,-2700.54,0.000277,30]
[342658914,1732027862402,-1886.80857099,0.00027705,2]
[342658915,1732027862416,-4379.32574111,0.000278,14]
[342658919,1732027862439,-277.20276736,0.00024657,7]
[342658922,1732027862468,-222.79723264,0.00024657,7]
[342658924,1732027862478,-500.0,0.00024657,7]
[342658926,1732027862487,-516.664798,0.00024657,7]
[342658928,1732027862496,-501.56178198,0.000278,14]
[342658930,1732027862508,-305.27247691,0.000278,14]
[342658932,1732027862524,-10000.0,0.000278,10]
[342658934,1732027862533,-182.325,0.0002791,120]
[342658936,1732027862542,-500.0,0.00027945,7]
[342658939,1732027862560,-943.06855884,0.00027945,7]
[342658942,1732027862578,-1591.83396425,0.00027978,2]
[342658953,1732027862694,-1582.31661239,0.00027978,2]
[342658956,1732027862713,-494.08368664,0.00027978,2]
[342658960,1732027862750,-3074.72196477,0.00027978,2]
[342658972,1732027862865,-500.0,0.00024657,7]
[342658975,1732027862883,-500.0,0.00024657,7]
[342658977,1732027862901,-17438.92166098,0.00027978,2]
[342658984,1732027862966,-546.800005,0.00018,2]
[342658987,1732027862987,-6468.824995,0.00018,2]
[342658990,1732027863001,-150.01,0.00024656,2]
[342658991,1732027863014,-8291.34984794,0.00027978,2]
[342658993,1732027863025,-2694.6049491,0.00027989,2]
[342658996,1732027863037,-4988.37136056,0.00027989,2]
[342658998,1732027863050,-869.94591213,0.00027989,2]
[342659000,1732027863063,-641.99132785,0.00027989,2]
[342659002,1732027863075,-2237.51252936,0.00027989,2]
[342659010,1732027863150,-1000.0,0.00024557,2]
[342659012,1732027863160,-3136.44628879,0.00024656,2]
[342659014,1732027863170,-21040.80165797,0.00027989,2]
[342659015,1732027863180,-32473.22773697,0.00027999,2]
[342659017,1732027863190,-603.3446448,0.00028,5]
[342659019,1732027863200,-1220.528239,0.00028,4]
[342659021,1732027863210,-4000.0,0.00028,120]
[342659023,1732027863219,-374.0310403,0.00028008,2]
[342659025,1732027863229,-300.0,0.000281,2]
[342659027,1732027863238,-145310.76151492,0.000282,120]
[342663441,1732028707828,400.0,0.00014,5]
[342663442,1732028715713,400.0,0.00014,5]
[342663443,1732028753341,150.0,0.00025,120]
[342663448,1732028952142,-294.0,0.00013973,2]
[342663502,1732029032247,-106.0,0.00013973,2]
[342663504,1732029032256,-788.23036744,0.000179,2]
[342663506,1732029032271,-1375.15336981,0.000179,2]
[342663508,1732029032280,-5883.79286137,0.00018,2]
[342663513,1732029032319,-1131.83213863,0.00018,2]
[342663515,1732029032328,-2475.4921669,0.00019696,2]
[342663517,1732029032337,-160.118326,0.00020156,2]
[342663519,1732029032347,-300.0,0.00020247,2]
[342663521,1732029032356,-300.0,0.00020247,2]
[342663523,1732029032365,-24900.0,0.00020248,2]
[342663525,1732029032375,-334.0711424,0.00020303,2]
[342663527,1732029032384,-177.808432,0.00020324,2]
[342663529,1732029032393,-545.5364741,0.00020428,2]
[342663531,1732029032402,-400.0,0.00020447,2]
[342663533,1732029032411,-356.69318,0.00021713,2]
[342663536,1732029032420,-356.69318,0.00022398,2]
[342663538,1732029032430,-1439.73,0.000224,2]
[342663540,1732029032439,-449.34549761,0.000224,2]
[342663542,1732029032448,-1616.09813932,0.00022419,2]
[342663544,1732029032457,-966.2931856,0.00022519,2]
[342663546,1732029032466,-356.69318,0.00023083,2]
[342663548,1732029032477,-1616.09813926,0.00023276,2]
[342663550,1732029032486,-170.476,0.00023419,3]
[342663552,1732029032495,-1616.09813926,0.00024132,2]
[342663554,1732029032505,-500.0,0.00024356,2]
[342663556,1732029032515,-214.10621974,0.00024556,2]
[342663558,1732029032524,-169.15542201,0.00024556,2]
[342663560,1732029032533,-112531.35163078,0.00024557,2]
[342663562,1732029032543,-330.0,0.00024557,2]
[342663564,1732029032552,-500.0,0.00024581,2]
[342663566,1732029032562,-500.0,0.00024657,7]
[342663568,1732029032571,-500.0,0.00024657,7]
[342663570,1732029032581,-500.90850025,0.00024657,7]
[342663572,1732029032590,-527.53262059,0.00024657,7]
[342663574,1732029032600,-506.6361738,0.00024657,7]
[342663576,1732029032610,-500.0,0.00024657,7]
[342663578,1732029032621,-500.0,0.00024657,7]
[342663580,1732029032630,-500.0,0.00024657,7]
[342663582,1732029032639,-500.0,0.00024657,7]
[342663584,1732029032649,-229.4,0.00024657,7]
[342663586,1732029032659,-501.75643257,0.00024657,7]
[342663588,1732029032668,-500.0,0.00024657,7]
[342663590,1732029032678,-503.64147484,0.00024657,7]
[342663592,1732029032687,-500.0,0.00024657,7]
[342663594,1732029032697,-500.0,0.00024657,7]
[342663596,1732029032707,-500.0,0.00024657,7]
[342663598,1732029032716,-425.39,0.00024657,7]
[342663600,1732029032725,-500.86447645,0.00024657,7]
[342663602,1732029032736,-500.0,0.00024657,7]
[342663605,1732029032748,-500.0,0.00024657,7]
[342663607,1732029032758,-257.48542944,0.00024657,7]
[342663609,1732029032769,-500.0,0.00024657,7]
[342663611,1732029032779,-397.01,0.00024657,7]
[342663613,1732029032789,-500.0,0.00024657,7]
[342663615,1732029032798,-273.63443255,0.00024657,7]
[342663617,1732029032807,-500.0,0.00024657,7]
[342663619,1732029032818,-500.0,0.00024657,7]
[342663621,1732029032827,-114.11490156,0.00024657,7]
[342664142,1732029038192,-500.0,0.00023417,2]
[342664144,1732029038202,-500.0,0.00023417,2]
[342664145,1732029038212,-171.31000025,0.00023417,2]
[342664154,1732029038296,-328.68999975,0.00023417,2]
[342664156,1732029038305,-421.49981525,0.00023417,2]
[342664158,1732029038314,-500.0,0.00023417,2]
[342664160,1732029038323,-286.23467661,0.00023417,2]
[342664162,1732029038333,-500.0,0.00023417,2]
[342664164,1732029038342,-500.0,0.00023417,2]
[342664166,1732029038351,-500.0,0.00023417,2]
[342664168,1732029038361,-500.0,0.00023417,2]
[342664170,1732029038370,-374.90842298,0.00023417,2]
[342664172,1732029038380,-381.30224534,0.00023417,2]
[342664174,1732029038389,-500.0,0.00023417,2]
[342664176,1732029038399,-500.0,0.00023417,2]
[342664179,1732029038408,-500.0,0.00023417,2]
[342664181,1732029038418,-500.0,0.00023417,2]
[342664182,1732029038427,-261.27077638,0.00023417,2]
[342664184,1732029038437,-214.95829057,0.00023417,2]
[342664186,1732029038447,-500.0,0.00023417,2]
[342664188,1732029038457,-385.88509844,0.00024657,7]
[342664190,1732029038467,-500.0,0.00024657,7]
[342664192,1732029038476,-500.0,0.00024657,7]
[342664194,1732029038485,-541.50417437,0.00024657,7]
[342664196,1732029038494,-302.51472765,0.00024657,7]
[342664198,1732029038503,-500.0,0.00024657,7]
[342664200,1732029038512,-500.0,0.00024657,7]
[342664202,1732029038525,-500.0,0.00024657,7]
[342664204,1732029038534,-500.0,0.00024657,7]
[342664206,1732029038544,-561.41,0.00024657,7]
[342664208,1732029038554,-500.0,0.00024657,7]
[342664210,1732029038563,-500.0,0.00024657,7]
[342664211,1732029038573,-500.0,0.00024657,7]
[342664213,1732029038583,-500.0,0.00024657,7]
[342664215,1732029038592,-500.0,0.00024657,7]
[342664217,1732029038602,-500.0,0.00024657,7]
[342664219,1732029038611,-504.57106515,0.00024657,7]
[342664220,1732029038620,-221.07639235,0.00024657,7]
[342664222,1732029038630,-500.0,0.00024657,7]
[342664224,1732029038640,-500.0,0.00024657,7]
[342664226,1732029038649,-500.0,0.00024657,7]
[342664228,1732029038659,-500.0,0.00024657,7]
[342664230,1732029038668,-390.17200291,0.00024657,7]
[342664231,1732029038678,-153.4383739,0.00024657,7]
[342664233,1732029038688,-500.0,0.00024657,7]
[342664235,1732029038697,-500.0,0.00024657,7]
[342664237,1732029038707,-500.0,0.00024657,7]
[342664239,1732029038716,-500.0,0.00024657,7]
[342664241,1732029038726,-500.0,0.00024657,7]
[342664243,1732029038739,-314.2,0.00024657,7]
[342664244,1732029038748,-508.4,0.00024657,7]
[342664246,1732029038757,-500.0,0.00024657,7]
[342664248,1732029038769,-500.0,0.00024657,7]
[342664250,1732029038779,-500.0,0.00024657,7]
[342664252,1732029038788,-500.0,0.00024657,7]
[342664254,1732029038797,-500.0,0.00024657,7]
[342664256,1732029038806,-227.42,0.00024657,7]
[342664258,1732029038819,-500.0,0.00024657,7]
[342664259,1732029038829,-500.0,0.00024657,7]
[342664261,1732029038838,-500.0,0.00024657,7]
[342664263,1732029038847,-500.0,0.00024657,7]
[342664265,1732029038857,-609.06,0.00024657,7]
[342664267,1732029038867,-500.0,0.00024657,7]
[342664269,1732029038879,-2000.0,0.00024657,2]
[342664271,1732029038888,-500.0,0.00024657,7]
[342664273,1732029038898,-500.0,0.00024657,7]
[342664275,1732029038908,-610.37872222,0.00024657,7]
[342664277,1732029038917,-582.67,0.00024657,7]
[342664279,1732029038927,-500.0,0.00024657,7]
[342664281,1732029038937,-500.0,0.00024657,7]
[342664282,1732029038947,-500.0,0.00024657,7]
[342664284,1732029038957,-500.0,0.00024657,7]
[342664286,1732029038967,-313.44,0.00024657,7]
[342664288,1732029038976,-500.0,0.00024657,7]
[342664290,1732029038986,-500.0,0.00024657,7]
[342664292,1732029038995,-244.97,0.00024657,7]
[342664294,1732029039005,-269.1,0.00024657,7]
[342664296,1732029039015,-500.0,0.00024657,7]
[342664298,1732029039026,-2336.0,0.00024657,2]
[342664300,1732029039035,-500.0,0.00024657,7]
[342664302,1732029039045,-500.0,0.00024657,7]
[342664304,1732029039054,-323.52,0.00024657,7]
[342664305,1732029039063,-500.0,0.00024657,7]
[342664307,1732029039073,-500.0,0.00024657,7]
[342664309,1732029039083,-352.87,0.00024657,7]
[342664311,1732029039092,-500.0,0.00024657,7]
[342664313,1732029039101,-574.92,0.00024657,7]
[342664315,1732029039111,-570.45,0.00024657,7]
[342664317,1732029039122,-500.0,0.00024657,7]
[342664319,1732029039132,-200.37177246,0.00024657,7]
[342664321,1732029039141,-500.0,0.00024657,7]
[342664323,1732029039151,-500.0,0.00024657,7]
[342664325,1732029039162,-273.4,0.00024657,7]
[342664327,1732029039171,-500.0,0.00024657,7]